bitfinex/quotes_BTCUSD_20230831
["timestamp","ask_amount","ask_price","bid_price","bid_amount"]
[1693484322548,4.82895455,27242.0,27241.0,0.02271]
[1693484326952,5.58311455,27242.0,27241.0,0.02271]
[1693484327151,5.60900194,27242.0,27241.0,0.021822]
[1693484327920,5.87213451,27242.0,27241.0,0.021822]
[1693484328073,5.60900194,27242.0,27241.0,0.021822]
[1693484332823,5.43365284,27242.0,27241.0,0.021822]
[1693484335112,5.72926166,27242.0,27241.0,0.021822]
[1693484336857,5.43365284,27242.0,27241.0,0.021822]
[1693484338539,5.65118856,27242.0,27241.0,0.021822]
[1693484339343,5.36800018,27242.0,27241.0,0.021822]
[1693484339571,5.68480254,27242.0,27241.0,0.021822]
[1693484340522,5.36800018,27242.0,27241.0,0.021822]
[1693484343575,5.62571803,27242.0,27241.0,0.021822]
[1693484344456,5.62578861,27242.0,27241.0,0.021822]
[1693484344870,5.36807076,27242.0,27241.0,0.021822]
[1693484347352,5.62231544,27242.0,27241.0,0.021822]
[1693484351241,5.88520872,27242.0,27241.0,0.021822]
[1693484351910,5.59622054,27242.0,27241.0,0.021822]
[1693484352526,5.88507483,27242.0,27241.0,0.021822]
[1693484353312,7.32149729,27242.0,27241.0,0.021822]
[1693484354280,7.59600698,27242.0,27241.0,0.021822]
[1693484355015,7.32149729,27242.0,27241.0,0.021822]
[1693484355443,7.61710611,27242.0,27241.0,0.021822]
[1693484355639,7.251027,27242.0,27241.0,0.021822]
[1693484356520,7.551027,27242.0,27241.0,0.021822]
[1693484356938,7.626527,27242.0,27241.0,0.021822]
[1693484360476,0.03296753,27238.0,27237.0,0.1]
[1693484360674,0.03296753,27236.0,27235.0,0.021109]
[1693484360882,3.22341094,27236.0,27235.0,0.021109]
[1693484361078,7.77999816,27236.0,27235.0,0.021109]
[1693484361284,7.81219618,27236.0,27235.0,0.021109]
[1693484361489,7.54938506,27236.0,27235.0,0.021109]
[1693484362308,7.55924266,27236.0,27235.0,0.021109]
[1693484362722,7.5961825,27236.0,27235.0,0.021109]
[1693484363005,7.9321825,27236.0,27235.0,0.021109]
[1693484363345,7.89598604,27236.0,27235.0,0.021109]
[1693484363545,7.85998604,27236.0,27235.0,0.021109]
[1693484363753,7.89598604,27236.0,27235.0,0.021109]
[1693484363953,7.93198604,27236.0,27235.0,0.021109]
[1693484364150,7.89598604,27236.0,27235.0,0.021109]
[1693484364350,7.85905504,27236.0,27235.0,0.021109]
[1693484364878,7.82305504,27236.0,27235.0,0.021109]
[1693484365037,8.24513415,27236.0,27235.0,0.021109]
[1693484365240,8.2450606,27236.0,27235.0,0.021109]
[1693484365812,8.2810606,27236.0,27235.0,0.021109]
[1693484366010,8.6668606,27236.0,27235.0,0.021109]
[1693484366139,0.03296753,27234.0,27233.0,0.021109]
[1693484366348,5.66634264,27234.0,27233.0,0.021109]
[1693484366563,7.75551691,27234.0,27233.0,0.021109]
[1693484368174,7.79151691,27234.0,27233.0,0.021109]
[1693484368957,7.82751691,27234.0,27233.0,0.021109]
[1693484369160,7.88955691,27234.0,27233.0,0.021109]
[1693484369363,7.82751691,27234.0,27233.0,0.021109]
[1693484370807,7.89033691,27234.0,27233.0,0.021109]
[1693484371215,7.89063691,27234.0,27233.0,0.021109]
[1693484371417,7.89183691,27234.0,27233.0,0.021109]
[1693484371616,7.89141691,27234.0,27233.0,0.021109]
[1693484371823,7.89177691,27234.0,27233.0,0.021109]
[1693484372027,7.89111691,27234.0,27233.0,0.021109]
[1693484372226,7.89063691,27234.0,27233.0,0.021109]
[1693484372433,7.89165691,27234.0,27233.0,0.021109]
[1693484372640,7.89591691,27234.0,27233.0,0.021109]
[1693484372846,7.89615691,27234.0,27233.0,0.021109]
[1693484373050,7.89135691,27234.0,27233.0,0.021109]
[1693484373254,7.89099691,27234.0,27233.0,0.021109]
[1693484373478,7.91501691,27234.0,27233.0,0.021109]
[1693484373681,7.91699691,27234.0,27233.0,0.021109]
[1693484373881,7.92083691,27234.0,27233.0,0.021109]
[1693484374057,7.92077691,27234.0,27233.0,0.021109]
[1693484374198,7.92065691,27234.0,27233.0,0.021109]
[1693484374395,7.91873691,27234.0,27233.0,0.021109]
[1693484374605,7.84751691,27234.0,27233.0,0.021109]
[1693484374845,7.81151691,27234.0,27233.0,0.021109]
[1693484375049,7.77551691,27234.0,27233.0,0.021109]
[1693484375255,7.84751691,27234.0,27233.0,0.021109]
[1693484375460,7.91507691,27234.0,27233.0,0.021109]
[1693484375632,7.87907691,27234.0,27233.0,0.021109]
[1693484375808,7.87949691,27234.0,27233.0,0.021109]
[1693484376012,7.84751691,27234.0,27233.0,0.021109]
[1693484376212,7.91561691,27234.0,27233.0,0.021109]
[1693484376600,7.84751691,27234.0,27233.0,0.021109]
[1693484376807,7.84854177,27234.0,27233.0,0.021109]
[1693484377446,7.91730177,27234.0,27233.0,0.021109]
[1693484377651,7.84854177,27234.0,27233.0,0.021109]
[1693484378261,8.06983514,27234.0,27233.0,0.021109]
[1693484378440,8.07031514,27234.0,27233.0,0.021109]
[1693484378637,8.07049514,27234.0,27233.0,0.021109]
[1693484378867,8.07043514,27234.0,27233.0,0.021109]
[1693484379071,8.07289514,27234.0,27233.0,0.021109]
[1693484379276,8.07319514,27234.0,27233.0,0.021109]
[1693484379501,8.07583514,27234.0,27233.0,0.021109]
[1693484379831,8.06953514,27234.0,27233.0,0.021109]
[1693484380035,7.92704639,27234.0,27233.0,0.021109]
[1693484380249,7.48246266,27234.0,27233.0,0.021109]
[1693484382268,7.70057219,27234.0,27233.0,0.021109]
[1693484383647,7.48246266,27234.0,27233.0,0.021109]
[1693484383846,7.70056248,27234.0,27233.0,0.021109]
[1693484384077,7.84854177,27234.0,27233.0,0.021109]
[1693484384411,8.06663607,27234.0,27233.0,0.021109]
[1693484384628,7.70055696,27234.0,27233.0,0.021109]
[1693484385196,7.70055919,27234.0,27233.0,0.021109]
[1693484385849,0.03296753,27222.0,27221.0,0.021109]
[1693484386051,1.60416727,27222.0,27221.0,0.021109]
[1693484386245,5.39637011,27222.0,27221.0,0.021109]
[1693484386712,5.9846857,27222.0,27221.0,0.021109]
[1693484386917,3.38154206,27222.0,27221.0,0.021109]
[1693484387071,4.11624106,27222.0,27221.0,0.021109]
[1693484387270,5.32851917,27222.0,27221.0,0.021109]
[1693484387487,5.55892669,27222.0,27221.0,0.021109]
[1693484387633,5.63892669,27222.0,27221.0,0.021109]
[1693484388668,5.67492669,27222.0,27221.0,0.021109]
[1693484388872,5.44451917,27222.0,27221.0,0.021109]
[1693484389119,5.72611704,27222.0,27221.0,0.021109]
[1693484389323,6.84689515,27222.0,27221.0,0.021109]
[1693484389499,6.48081604,27222.0,27221.0,0.021109]
[1693484390323,6.2321857,27222.0,27221.0,0.021109]
[1693484390643,6.51995601,27222.0,27221.0,0.021109]
[1693484392364,6.2321857,27222.0,27221.0,0.021109]
[1693484393772,6.1961857,27222.0,27221.0,0.021109]
[1693484394369,6.2321857,27222.0,27221.0,0.021109]
[1693484395213,6.59826481,27222.0,27221.0,0.021109]
[1693484395426,6.89826481,27222.0,27221.0,0.021109]
[1693484395610,6.79786581,27222.0,27221.0,0.021109]
[1693484395965,5.4774867,27222.0,27221.0,0.021109]
[1693484396168,4.7427877,27222.0,27221.0,0.021109]
[1693484396370,4.7427877,27222.0,27221.0,0.08133742]
[1693484396371,3.24042217,27222.0,27221.0,0.08133742]
[1693484396576,0.0905,27226.0,27222.0,0.08]
[1693484396772,0.015,27224.0,27223.0,0.06022842]
[1693484396973,0.015,27224.0,27222.0,0.3087]
[1693484397195,1.85039511,27224.0,27222.0,0.3087]
[1693484398324,1.92239511,27224.0,27222.0,0.3157]
[1693484398502,1.92239511,27224.0,27223.0,0.03770536]
[1693484399766,1.88639511,27224.0,27223.0,0.03770536]
[1693484399964,1.92239511,27224.0,27223.0,0.04070536]
[1693484400164,1.88639511,27224.0,27223.0,0.04070536]
[1693484400591,1.92239511,27224.0,27223.0,0.04470536]
[1693484400974,2.65705311,27224.0,27223.0,0.007]
[1693484401177,3.0397154,27224.0,27223.0,0.007]
[1693484404903,2.82602064,27224.0,27223.0,0.007]
[1693484405101,2.93323329,27224.0,27223.0,0.007]
[1693484405389,3.06405227,27224.0,27223.0,0.007]
[1693484405597,0.03296753,27222.0,27221.0,0.021109]
[1693484405776,4.16804164,27222.0,27221.0,0.021109]
[1693484405907,4.46804164,27222.0,27221.0,0.021109]
[1693484406306,4.555323,27222.0,27221.0,0.021109]
[1693484406512,4.630823,27222.0,27221.0,0.021109]
[1693484407210,4.666823,27222.0,27221.0,0.021109]
[1693484407619,4.630823,27222.0,27221.0,0.021109]
[1693484408002,4.702823,27222.0,27221.0,0.021109]
[1693484408564,4.697823,27222.0,27221.0,0.021109]
[1693484408976,4.82874504,27222.0,27221.0,0.021109]
[1693484409174,4.80392368,27222.0,27221.0,0.021109]
[1693484409545,4.80362368,27222.0,27221.0,0.021109]
[1693484409715,4.74146368,27222.0,27221.0,0.021109]
[1693484409924,0.02796753,27217.0,27216.0,0.021109]
[1693484410099,0.02796753,27215.0,27214.0,0.021109]
[1693484410283,2.08570605,27215.0,27214.0,0.021109]
[1693484410484,2.40570605,27215.0,27214.0,0.021109]
[1693484410681,2.34660135,27215.0,27214.0,0.021109]
[1693484410917,2.25932264,27215.0,27214.0,0.021109]
[1693484411121,2.28043164,27215.0,27214.0,0.021109]
[1693484411329,4.48509564,27215.0,27214.0,0.021109]
[1693484411731,4.52109564,27215.0,27214.0,0.021109]
[1693484413022,4.55709564,27215.0,27214.0,0.021109]
[1693484413611,2.23271253,27214.0,27213.0,0.021109]
[1693484413964,2.94965224,27214.0,27213.0,0.021109]
[1693484414732,3.27075131,27214.0,27213.0,0.021109]
[1693484414928,2.95075131,27214.0,27213.0,0.021109]
[1693484415505,2.66565224,27214.0,27213.0,0.021109]
[1693484415702,2.90019095,27214.0,27213.0,0.021109]
[1693484416075,2.93619095,27214.0,27213.0,0.021109]
[1693484416243,2.72165224,27214.0,27213.0,0.021109]
[1693484416450,3.31827144,27214.0,27213.0,0.021109]
[1693484417048,3.19775333,27214.0,27213.0,0.021109]
[1693484417299,3.32822821,27214.0,27213.0,0.021109]
[1693484417806,3.30822821,27214.0,27213.0,0.021109]
[1693484420560,1.96673724,27214.0,27213.0,0.021109]
[1693484420744,0.43807911,27214.0,27213.0,0.021109]
[1693484420953,0.072,27214.0,27213.0,0.236609]
[1693484421164,0.072,27214.0,27213.0,1.2854669]
[1693484421371,0.0507,27214.0,27213.0,1.7631789]
[1693484421574,0.0167,27214.0,27213.0,1.7631789]
[1693484421781,1.469594,27219.0,27216.0,0.1]
[1693484421997,0.734808,27218.0,27216.0,0.16022842]
[1693484422199,1.469616,27218.0,27216.0,0.04]
[1693484422411,1.469616,27218.0,27216.0,0.02]
[1693484422623,1.24796711,27219.0,27218.0,1.11524]
[1693484422624,0.147092,27219.0,27218.0,1.11524]
[1693484422843,1.55666271,27223.0,27221.0,0.1]
[1693484422844,0.734686,27223.0,27221.0,0.1]
[1693484423053,0.734686,27223.0,27221.0,0.16022842]
[1693484423054,1.83545111,27223.0,27221.0,0.16022842]
[1693484423252,1.544872,27223.0,27221.0,0.08022842]
[1693484423456,1.469372,27223.0,27221.0,0.02]
[1693484423667,1.469372,27223.0,27222.0,0.02]
[1693484423875,1.32193371,27224.0,27222.0,0.05711]
[1693484423876,0.5,27224.0,27222.0,0.05711]
[1693484424078,0.5,27224.0,27223.0,0.1]
[1693484424281,1.234645,27224.0,27223.0,0.1]
[1693484424490,1.96929,27224.0,27223.0,0.1]
[1693484425666,2.00629,27224.0,27223.0,0.103]
[1693484425867,2.00629,27224.0,27223.0,0.123011]
[1693484426829,2.04229,27224.0,27223.0,0.127011]
[1693484427290,0.573,27224.0,27223.0,0.127011]
[1693484427518,0.573,27224.0,27223.0,0.147011]
[1693484428247,1.307645,27224.0,27223.0,0.147011]
[1693484429476,2.317806,27224.0,27223.0,0.147011]
[1693484429603,3.052451,27224.0,27223.0,0.147011]
[1693484429810,2.317806,27224.0,27223.0,0.147011]
[1693484430558,0.573,27224.0,27223.0,0.147011]
[1693484431467,1.307645,27224.0,27223.0,0.147011]
[1693484431726,3.28939752,27224.0,27223.0,0.007]
[1693484431920,3.72858702,27224.0,27223.0,0.007]
[1693484432130,3.74858702,27224.0,27223.0,0.007]
[1693484432549,3.53038452,27224.0,27223.0,0.007]
[1693484441939,3.55935445,27224.0,27223.0,0.007]
[1693484442142,3.53935445,27224.0,27223.0,0.007]
[1693484445633,3.90543356,27224.0,27223.0,0.007]
[1693484445833,4.29308372,27224.0,27223.0,0.007]
[1693484448508,4.25608372,27224.0,27223.0,0.004]
[1693484448944,4.29208372,27224.0,27223.0,0.005]
[1693484449143,4.22008372,27224.0,27217.0,0.2268]
[1693484449349,0.08740238,27219.0,27218.0,0.02468]
[1693484449554,3.46810149,27219.0,27216.0,0.2414]
[1693484449763,0.0755,27217.0,27216.0,0.02]
[1693484449977,2.280002,27217.0,27216.0,0.02]
[1693484450185,2.280002,27217.0,27216.0,0.03399059]
[1693484450399,2.280002,27217.0,27216.0,0.07352965]
[1693484451397,2.280002,27217.0,27216.0,0.03399059]
[1693484451398,2.64608111,27217.0,27216.0,0.03399059]
[1693484451611,2.73348349,27217.0,27216.0,0.03399059]
[1693484451952,2.64808111,27217.0,27216.0,0.005]
[1693484452352,2.65008111,27217.0,27216.0,0.013]
[1693484452765,2.95339075,27217.0,27216.0,0.013]
[1693484452967,3.04079313,27217.0,27216.0,0.013]
[1693484453174,2.95339075,27217.0,27216.0,0.013]
[1693484453585,3.04079313,27217.0,27216.0,0.013]
[1693484454206,2.95339075,27217.0,27216.0,0.013]
[1693484455386,0.487,27216.0,27215.0,0.2214]
[1693484455585,3.13316211,27216.0,27215.0,0.2214]
[1693484455798,3.13316211,27216.0,27213.0,0.021109]
[1693484455799,3.29606449,27216.0,27213.0,0.021109]
[1693484456003,0.0755,27214.0,27213.0,0.021109]
[1693484456220,3.38123911,27214.0,27213.0,0.021109]
[1693484457503,3.66973311,27214.0,27213.0,0.021109]
[1693484457707,3.38423911,27214.0,27213.0,0.021109]
[1693484457909,3.65784284,27214.0,27213.0,0.021109]
[1693484458504,3.38723911,27214.0,27213.0,0.021109]
[1693484459118,3.64858539,27214.0,27213.0,0.021109]
[1693484459324,4.38350039,27214.0,27213.0,0.021109]
[1693484459534,4.12215411,27214.0,27213.0,0.021109]
[1693484459745,4.20955649,27214.0,27213.0,0.021109]
[1693484460394,4.34066006,27214.0,27213.0,0.021109]
[1693484460600,4.25325768,27214.0,27213.0,0.021109]
[1693484460815,4.58877514,27214.0,27213.0,0.021109]
[1693484461016,4.34067526,27214.0,27213.0,0.021109]
[1693484461673,4.20957169,27214.0,27213.0,0.021109]
[1693484461874,4.50591497,27214.0,27213.0,0.021109]
[1693484462084,4.54960096,27214.0,27213.0,0.0460399]
[1693484462291,3.60808239,27214.0,27213.0,0.0460399]
[1693484462718,2.210745,27214.0,27213.0,0.0460399]
[1693484462931,0.740915,27214.0,27213.0,0.1660399]
[1693484463136,0.006,27214.0,27213.0,0.21512645]
[1693484463375,0.74004951,27214.0,27213.0,0.21512645]
[1693484464836,0.73918354,27214.0,27213.0,0.2010399]
[1693484465048,0.00426854,27214.0,27213.0,0.7542519]
[1693484465265,0.00340144,27214.0,27213.0,0.7542519]
[1693484465466,0.00253402,27214.0,27213.0,0.7542519]
[1693484468411,0.00253402,27214.0,27213.0,2.46155501]
[1693484468606,0.00253402,27214.0,27213.0,2.54261501]
[1693484468851,0.00253402,27214.0,27213.0,2.83967501]
[1693484469028,0.00253402,27214.0,27213.0,2.83187501]
[1693484469242,0.00253402,27214.0,27213.0,2.83151501]
[1693484469448,0.00253402,27214.0,27213.0,1.9177639]
[1693484470012,0.00653402,27214.0,27213.0,2.3142517]
[1693484470208,0.004,27214.0,27213.0,2.3142517]
[1693484470593,0.008,27214.0,27213.0,2.3362517]
[1693484471658,0.008,27214.0,27213.0,2.4012917]
[1693484471867,0.008,27214.0,27213.0,2.78321081]
[1693484472016,0.008,27214.0,27213.0,2.79401081]
[1693484472219,0.008,27214.0,27213.0,2.77979081]
[1693484472561,0.008,27214.0,27213.0,2.77595081]
[1693484472785,0.008,27214.0,27213.0,2.77589081]
[1693484472984,0.008,27214.0,27213.0,2.77751081]
[1693484473184,0.008,27214.0,27213.0,2.77673081]
[1693484473393,0.008,27214.0,27213.0,2.77835081]
[1693484473593,0.008,27214.0,27213.0,2.77811081]
[1693484473772,0.008,27214.0,27213.0,2.78003081]
[1693484473992,0.008,27214.0,27213.0,2.77949081]
[1693484474192,0.008,27214.0,27213.0,2.77889081]
[1693484474416,0.008,27214.0,27213.0,2.70233081]
[1693484474851,0.008,27214.0,27213.0,0.364]
[1693484474852,0.24491462,27214.0,27213.0,0.364]
[1693484475219,0.24491462,27214.0,27213.0,0.064]
[1693484475409,1.71474462,27214.0,27213.0,0.064]
[1693484475612,1.79018429,27214.0,27213.0,0.064]
[1693484476012,2.52509929,27214.0,27213.0,0.064]
[1693484476439,2.52509929,27214.0,27213.0,0.09322]
[1693484476819,0.32035429,27214.0,27213.0,0.09322]
[1693484477429,1.05526929,27214.0,27213.0,0.09322]
[1693484477847,1.79018429,27214.0,27213.0,0.09322]
[1693484478792,1.79018429,27214.0,27213.0,0.07322]
[1693484478984,1.79018429,27214.0,27213.0,0.09322]
[1693484480868,1.79018429,27214.0,27213.0,0.07322]
[1693484482248,0.32035429,27214.0,27213.0,0.07322]
[1693484482651,0.008,27214.0,27213.0,0.07322]
[1693484483255,0.008,27214.0,27213.0,1.781915]
[1693484493511,0.008,27214.0,27213.0,1.801915]
[1693484495045,0.31763219,27214.0,27213.0,1.36095]
[1693484495245,1.05254719,27214.0,27213.0,0.064]
[1693484495996,0.31763219,27214.0,27213.0,0.064]
[1693484496577,0.008,27214.0,27213.0,0.064]
[1693484498374,0.008,27214.0,27213.0,0.059]
[1693484499791,0.008,27214.0,27213.0,1.843195]
[1693484499942,0.008,27214.0,27213.0,2.0716126]
[1693484500143,0.008,27214.0,27213.0,2.51497171]
[1693484500353,0.008,27214.0,27213.0,2.82097171]
[1693484500557,0.008,27214.0,27213.0,2.81839171]
[1693484500766,0.008,27214.0,27213.0,2.80651171]
[1693484500978,0.008,27214.0,27213.0,2.80369171]
[1693484501179,0.008,27214.0,27213.0,2.80057171]
[1693484501402,0.008,27214.0,27213.0,2.79979171]
[1693484501803,0.008,27214.0,27213.0,2.80021171]
[1693484502233,0.008,27214.0,27213.0,2.73769171]
[1693484502865,0.008,27214.0,27213.0,2.79985171]
[1693484503087,0.008,27214.0,27213.0,2.73769171]
[1693484503860,0.008,27214.0,27213.0,2.79991171]
[1693484504117,0.008,27214.0,27213.0,2.80081171]
[1693484504257,0.008,27214.0,27213.0,2.81797171]
[1693484504460,0.008,27214.0,27213.0,2.73769171]
[1693484504662,0.008,27214.0,27213.0,2.3716126]
[1693484505620,0.008,27214.0,27213.0,2.73769171]
[1693484509645,0.008,27214.0,27213.0,2.80933171]
[1693484509840,0.008,27214.0,27213.0,2.81047171]
[1693484510000,0.008,27214.0,27213.0,2.81101171]
[1693484510204,0.008,27214.0,27213.0,2.81125171]
[1693484510366,0.008,27214.0,27213.0,2.81065171]
[1693484510570,0.008,27214.0,27213.0,2.81047171]
[1693484510789,0.008,27214.0,27213.0,2.81029171]
[1693484511013,0.008,27214.0,27213.0,2.80813171]
[1693484511215,0.008,27214.0,27213.0,2.82655171]
[1693484511456,0.008,27214.0,27213.0,2.82607171]
[1693484511632,0.008,27214.0,27213.0,2.82565171]
[1693484511832,0.008,27214.0,27213.0,2.82313171]
[1693484512191,0.008,27214.0,27213.0,2.81365171]
[1693484512395,0.008,27214.0,27213.0,2.81209171]
[1693484512524,0.008,27214.0,27213.0,2.81143171]
[1693484512731,0.008,27214.0,27213.0,2.81605171]
[1693484512932,0.008,27214.0,27213.0,2.81671171]
[1693484513163,0.008,27214.0,27213.0,2.81731171]
[1693484513360,0.008,27214.0,27213.0,2.81689171]
[1693484513562,0.008,27214.0,27213.0,2.81701171]
[1693484513800,0.008,27214.0,27213.0,2.81815171]
[1693484513989,0.008,27214.0,27213.0,2.81761171]
[1693484514184,0.008,27214.0,27213.0,3.87717084]
[1693484514386,0.008,27214.0,27213.0,2.81833171]
[1693484514586,0.008,27214.0,27213.0,2.81821171]
[1693484514763,0.008,27214.0,27213.0,2.81857171]
[1693484514941,0.008,27214.0,27213.0,2.81839171]
[1693484515146,0.008,27214.0,27213.0,2.81857171]
[1693484515544,0.008,27214.0,27213.0,2.81881171]
[1693484515743,0.008,27214.0,27213.0,2.81941171]
[1693484515943,0.008,27214.0,27213.0,2.81929171]
[1693484516210,0.008,27214.0,27213.0,2.81893171]
[1693484516423,0.008,27214.0,27213.0,2.81977171]
[1693484516617,0.008,27214.0,27213.0,2.81917171]
[1693484516816,0.008,27214.0,27213.0,2.81695171]
[1693484517023,0.008,27214.0,27213.0,2.73769171]
[1693484517935,0.008,27214.0,27213.0,2.50927411]
[1693484522561,0.008,27214.0,27213.0,2.58115411]
[1693484522760,0.008,27214.0,27213.0,3.66055298]
[1693484522959,0.008,27214.0,27213.0,3.65671298]
[1693484523204,0.008,27214.0,27213.0,2.57407411]
[1693484523506,0.02,27216.0,27215.0,0.3858]
[1693484523709,0.02,27216.0,27215.0,2.59111111]
[1693484524697,0.025,27216.0,27215.0,2.63911111]
[1693484533848,0.0849318,27216.0,27215.0,2.63911111]
[1693484534912,0.1049318,27216.0,27215.0,2.63911111]
[1693484535118,0.1049318,27216.0,27215.0,2.85128995]
[1693484536429,0.33140476,27219.0,27218.0,0.02]
[1693484536430,0.13110357,27219.0,27218.0,0.02]
[1693484536652,0.21850595,27222.0,27220.0,0.02]
[1693484536653,0.08739152,27222.0,27220.0,0.02]
[1693484536913,0.08739152,27222.0,27221.0,1.25294353]
[1693484537121,0.08739152,27223.0,27221.0,3.18097346]
[1693484537535,0.10739152,27223.0,27222.0,0.4613]
[1693484537738,0.08739152,27223.0,27222.0,2.14983611]
[1693484538168,0.10755278,27223.0,27222.0,2.14983611]
[1693484538368,0.11055278,27223.0,27222.0,2.21188124]
[1693484538576,0.003,27223.0,27222.0,2.53188124]
[1693484538779,0.006,27223.0,27222.0,2.67060124]
[1693484539000,0.006,27223.0,27222.0,2.67132124]
[1693484539231,0.006,27223.0,27222.0,2.66046124]
[1693484539427,0.006,27223.0,27222.0,2.66118124]
[1693484539664,0.006,27223.0,27222.0,2.66580124]
[1693484539867,0.003,27223.0,27222.0,2.66796124]
[1693484540043,0.003,27223.0,27222.0,2.66790124]
[1693484540183,0.004,27223.0,27222.0,2.70646124]
[1693484540388,0.004,27223.0,27222.0,2.70670124]
[1693484540585,0.004,27223.0,27222.0,2.71228124]
[1693484540784,0.004,27223.0,27222.0,2.71660124]
[1693484541038,0.004,27223.0,27222.0,2.71816124]
[1693484541209,0.004,27223.0,27222.0,2.72038124]
[1693484541412,0.004,27223.0,27222.0,2.72182124]
[1693484541614,0.004,27223.0,27222.0,2.72290124]
[1693484541817,0.004,27223.0,27222.0,2.73160124]
[1693484542163,0.004,27223.0,27222.0,2.73268124]
[1693484542369,0.004,27223.0,27222.0,2.73232124]
[1693484542572,0.004,27223.0,27222.0,2.73244124]
[1693484542779,0.004,27223.0,27222.0,2.72668124]
[1693484542780,0.0025,27223.0,27222.0,2.72668124]
[1693484543000,0.0025,27223.0,27222.0,2.69260124]
[1693484543296,0.0025,27223.0,27222.0,2.69590124]
[1693484543497,0.0025,27223.0,27222.0,2.69614124]
[1693484543698,0.0025,27223.0,27222.0,2.69788124]
[1693484543901,0.0025,27223.0,27222.0,2.70946124]
[1693484544076,0.0025,27223.0,27222.0,2.69914124]
[1693484544290,0.0025,27223.0,27222.0,2.70316124]
[1693484544496,0.0025,27223.0,27222.0,2.70016124]
[1693484544694,0.0025,27223.0,27222.0,2.70064124]
[1693484544890,0.0025,27223.0,27222.0,2.70082124]
[1693484545094,0.0025,27223.0,27222.0,2.70106124]
[1693484545281,0.0025,27223.0,27222.0,2.70136124]
[1693484545479,0.0025,27223.0,27222.0,3.76048385]
[1693484545653,0.0025,27223.0,27222.0,3.76096385]
[1693484545990,0.0025,27223.0,27222.0,3.76114385]
[1693484546327,0.0025,27223.0,27222.0,3.76060385]
[1693484546531,0.0025,27223.0,27222.0,3.76318385]
[1693484546673,0.0025,27223.0,27222.0,3.76588385]
[1693484546882,0.0025,27223.0,27222.0,3.79646017]
[1693484547078,0.0025,27223.0,27222.0,3.79400017]
[1693484547403,0.0025,27223.0,27222.0,3.85270017]
[1693484547604,0.08744933,27227.0,27226.0,0.02]
[1693484547768,0.14738113,27229.0,27227.0,0.4058]
[1693484547963,0.16738113,27229.0,27228.0,2.14954511]
[1693484548254,0.08744933,27230.0,27228.0,2.59026711]
[1693484548454,0.08744933,27230.0,27229.0,0.4613]
[1693484548455,0.10744933,27230.0,27229.0,0.4613]
[1693484548582,0.10744933,27230.0,27229.0,2.14949711]
[1693484548793,0.10744933,27230.0,27229.0,2.3916961]
[1693484549188,0.08744933,27230.0,27229.0,2.4116961]
[1693484549426,0.005,27230.0,27229.0,2.7116961]
[1693484549641,0.0999318,27232.0,27229.0,2.7116961]
[1693484549844,0.16738113,27233.0,27231.0,0.4813]
[1693484550054,0.32607267,27234.0,27232.0,3.00674902]
[1693484550055,0.08744933,27234.0,27232.0,3.00674902]
[1693484550267,0.0799318,27235.0,27234.0,0.3858]
[1693484550423,0.02,27235.0,27234.0,2.88987911]
[1693484550636,0.0999318,27235.0,27234.0,2.88987911]
[1693484550857,0.0999318,27235.0,27234.0,3.94838314]
[1693484551065,0.0999318,27235.0,27234.0,4.05098471]
[1693484551262,0.08744933,27238.0,27234.0,4.05098471]
[1693484551263,0.0999318,27237.0,27234.0,4.05098471]
[1693484551463,0.0999318,27237.0,27236.0,0.3858]
[1693484551663,0.0999318,27237.0,27236.0,2.76608303]
[1693484551866,0.0999318,27237.0,27236.0,3.22766214]
[1693484551867,0.02,27237.0,27236.0,3.22766214]
[1693484552122,0.02,27237.0,27236.0,3.57979214]
[1693484552695,0.02,27237.0,27236.0,3.58979214]
[1693484552898,0.02,27237.0,27236.0,3.60379214]
[1693484553419,0.02,27237.0,27236.0,3.58979214]
[1693484553796,0.021,27237.0,27236.0,3.62679214]
[1693484554200,0.021,27237.0,27236.0,3.61679214]
[1693484554606,0.021,27237.0,27236.0,3.65279214]
[1693484556438,0.021,27237.0,27236.0,3.63279214]
[1693484561112,0.0409318,27237.0,27236.0,3.63279214]
[1693484561985,0.0809318,27237.0,27236.0,3.63279214]
[1693484562418,0.1009318,27237.0,27236.0,3.63279214]
[1693484564815,0.1009318,27237.0,27236.0,2.57428811]
[1693484564995,0.1009318,27237.0,27236.0,3.63268761]
[1693484567084,0.1009318,27237.0,27236.0,3.55718761]
[1693484568158,0.0809318,27237.0,27236.0,3.55718761]
[1693484568361,0.1009318,27237.0,27236.0,3.55718761]
[1693484568790,0.1009318,27237.0,27236.0,3.63268761]
[1693484573143,0.1009318,27237.0,27236.0,3.55718761]
[1693484574848,0.33611608,27237.0,27236.0,2.3099225]
[1693484575057,1.07400255,27237.0,27236.0,1.1313995]
[1693484575325,1.6650218,27237.0,27236.0,1.1313995]
[1693484575539,1.6650218,27237.0,27228.0,0.881423]
[1693484575540,2.66546411,27237.0,27228.0,0.881423]
[1693484575747,2.66546411,27237.0,27227.0,0.440729]
[1693484575748,0.0999318,27229.0,27227.0,0.440729]
[1693484575955,0.14638341,27228.0,27227.0,1.24754111]
[1693484576165,0.14638341,27228.0,27227.0,2.35334111]
[1693484576382,0.0999318,27229.0,27227.0,2.11407911]
[1693484577426,0.0999318,27229.0,27228.0,0.75187911]
[1693484577632,0.0999318,27231.0,27228.0,2.15456511]
[1693484577833,0.0999318,27231.0,27230.0,0.3858]
[1693484578041,0.0999318,27231.0,27230.0,2.37394911]
[1693484578877,0.1059318,27231.0,27230.0,2.37394911]
[1693484579091,0.1029318,27231.0,27230.0,2.37394911]
[1693484579498,0.1059318,27231.0,27230.0,2.41094911]
[1693484579736,0.1059318,27231.0,27230.0,2.61701487]
[1693484580145,0.1029318,27231.0,27230.0,2.61701487]
[1693484580351,0.1059318,27231.0,27230.0,2.65401487]
[1693484581723,0.006,27231.0,27230.0,2.72951487]
[1693484581926,0.1059318,27231.0,27230.0,2.83307487]
[1693484582126,0.1059318,27231.0,27230.0,2.82371487]
[1693484582330,0.1059318,27231.0,27230.0,2.81609487]